Workbook

Sheet pieghe90° (hidden)
A3: Fattore K = | C3: 0.50
A5: Misure Esterne
D6: 1° Linea di piega (Rif.A) | E6: 2° Linea di piega | F6: 3° linea di piega(Rif.B) | G6: 4° linea di piega | I6: Misura taglio | J6: Sviluppo
A7: Spessore | C7: 2
A9: 1°piega | C9: 50 | D9: =((C7*C3)+C10)*0.785+C9-C7-C10 -> 48.355
A10: raggio int | C10: 2
A11: 2°piega | C11: 250.5 | E11: =((C7*C3)+C12)*1.57+C11-(C7*2)-(C12*2) -> 247.21 | I11: =IFERROR((C7/2+C10)*0.785+C11-C7-C12+D9,"") -> 297.21 | J11: due lati
A12: raggio int | C12: 2
A13: 3°piega | C13: 100 | F13: =IF(C13=0,"",((C7*C3)+C14)*0.785+C13-C7-C14) -> 98.355 | I13: =IFERROR((C7/2+C10)*0.785+D9+E11+C13-C12-C7,"") -> 393.92 | J13: tre lati
A14: raggio int | C14: 2
A15: 4°piega | C15: 250.5 | G15: =IF(C15=0,"",((C7*C3)+C16)*1.57+C15-(C7*2)-(C16*2)) -> 247.21 | I15: =IFERROR((C7/2+C10)*0.785+D9+E11+G15+C13-C12-C7,"") -> 641.13 | J15: quattro lati
A16: raggio int | C16: 2
A18: X | C18: 250 | H18: =IF(C18=0,"",(C7/2+C16)*1.57+C18-(C7*2)-(C16*2)) -> 246.71 | I18: =IFERROR((C7/2+C10)*0.785+D9+E11+G15+H18+C13-C12-C7,"") -> 887.84 | J18: cinque lati
F28: 2 lati(una piega ) | G28: =I11-D9 -> 248.855

Sheet Start
H26: Calcolo Piega

Sheet Tabella piegatura
AH1: =1.4*B$10 -> 8.4 | AI1: 11.2 | AJ1: 14 | AK1: 16.8 | AL1: 22.4 | AM1: 28 | AN1: 35 | AO1: 44.8 | AP1: 49 | AQ1: 56 | AR1: 70 | AS1: 88.2 | AT1: 112 | AU1: 140 | AV1: 175 | AW1: 224 | AX1: 280 | AY1: 350
AH2: =(($A13^2)*2)*$W$12/$AH$1 -> 3
AH3: =(($A14^2)*2)*$W$12/$AH$1 -> 4 | AI3: =(($A14^2)*2)*$W$12/$AI$1 -> 3
AH4: =(($A15^2)*2)*$W$12/$AH$1 -> 7 | AI4: =(($A15^2)*2)*$W$12/$AI$1 -> 5 | AJ4: =(($A15^2)*2)*$W$12/$AJ$1 -> 4
AH5: =(($A16^2)*2)*$W$12/$AH$1 -> 11 | AI5: =(($A16^2)*2)*$W$12/$AI$1 -> 8 | AJ5: =(($A16^2)*2)*$W$12/$AJ$1 -> 6 | AK5: =(($A16^2)*2)*$W$12/AK$1 -> 5
V6: Verifica forza necessaria e soglia matrice | AH6: =(($A17^2)*2)*$W$12/$AH$1 -> 15 | AI6: =(($A17^2)*2)*$W$12/$AI$1 -> 12 | AJ6: =(($A17^2)*2)*$W$12/$AJ$1 -> 9 | AK6: =(($A17^2)*2)*$W$12/AK$1 -> 8 | AL6: =(($A17^2)*2)*$W$12/AL$1 -> 6
AJ7: =(($A18^2)*2)*$W$12/$AJ$1 -> 14 | AK7: =(($A18^2)*2)*$W$12/AK$1 -> 12 | AL7: =(($A18^2)*2)*$W$12/AL$1 -> 9 | AM7: =(($A18^2)*2)*$W$12/AM$1 -> 7
AJ8: =(($A19^2)*2)*$W$12/$AJ$1 -> 26 | AK8: =(($A19^2)*2)*$W$12/AK$1 -> 21 | AL8: =(($A19^2)*2)*$W$12/AL$1 -> 16 | AM8: =(($A19^2)*2)*$W$12/AM$1 -> 13 | AN8: =(($A19^2)*2)*$W$12/AN$1 -> 10
V9: Tonnellate necessarie | AK9: =(($A20^2)*2)*$W$12/AK$1 -> 33 | AL9: =(($A20^2)*2)*$W$12/AL$1 -> 25 | AM9: =(($A20^2)*2)*$W$12/AM$1 -> 20 | AN9: =(($A20^2)*2)*$W$12/AN$1 -> 16 | AO9: =(($A20^2)*2)*$W$12/AO$1 -> 13 | AP9: 11
A10: T | B10: 6 | C10: 8 | D10: 10 | E10: 12 | F10: 16 | G10: 20 | H10: 25 | I10: 32 | J10: 35 | K10: 40 | L10: 50 | M10: 63 | N10: 80 | O10: 100 | P10: 125 | Q10: 160 | R10: 200 | S10: 250 | T10: V | V10: Spessore | W10: 2.5 | AB10: Acciaio dolce (FE) | AC10: 45 | AE10: =(($W$10^2)*2)*$W$12 -> 562.5 | AL10: =(($A21^2)*2)*$W$12/AL$1 -> 36 | AM10: =(($A21^2)*2)*$W$12/AM$1 -> 29 | AN10: =(($A21^2)*2)*$W$12/AN$1 -> 23 | AO10: 18 | AP10: 17 | AQ10: =(($A21^2)*2)*$W$12/AQ$1 -> 14
B11: 4 | C11: 5.5 | D11: 7 | E11: 8.5 | F11: 11 | G11: 14 | H11: 17.5 | I11: 22 | J11: 25 | K11: 28 | L11: 35 | M11: 45 | N11: 55 | O11: 71 | P11: 89 | Q11: 113 | R11: 140 | S11: 175 | T11: b | V11: Materiale | W11: Acciaio dolce (FE) | AB11: Acciaio duro (FE) | AC11: 52 | AE11: =1.4*W13 -> 16.8 | AM11: =(($A22^2)*2)*$W$12/AM$1 -> 51 | AN11: =(($A22^2)*2)*$W$12/AN$1 -> 41 | AO11: 32 | AP11: 29 | AQ11: =(($A22^2)*2)*$W$12/AQ$1 -> 26 | AR11: =(($A22^2)*2)*$W$12/AR$1 -> 21
B12: 1 | C12: 1.3 | D12: 1.6 | E12: 2 | F12: 2.6 | G12: 3.3 | H12: 4 | I12: 5 | J12: 5.8 | K12: 6.5 | L12: 8 | M12: 10 | N12: 13 | O12: 16 | P12: 20 | Q12: 26 | R12: 23 | S12: 41 | T12: ri | V12: Resistenza kg/mmq | W12: =VLOOKUP($W$11,AB10:AC13,2) -> 45 | AB12: Acciaio inox (aisi) | AC12: 68 | AN12: =(($A23^2)*2)*$W$12/AN$1 -> 64 | AO12: 50 | AP12: 46 | AQ12: =(($A23^2)*2)*$W$12/AQ$1 -> 40 | AR12: =(($A23^2)*2)*$W$12/AR$1 -> 32 | AS12: =(($A23^2)*2)*$W$12/AS$1 -> 26
A13: 0.5 | B13: =AH2 -> 3 | V13: Cava | W13: 12 | AB13: Alluminio | AC13: 23 | AO13: 72 | AP13: 66 | AQ13: =(($A24^2)*2)*$W$12/AQ$1 -> 58 | AR13: =(($A24^2)*2)*$W$12/AR$1 -> 46 | AS13: =(($A24^2)*2)*$W$12/AS$1 -> 37 | AT13: =(($A24^2)*2)*$W$12/AT$1 -> 29
A14: 0.6 | B14: =AH3 -> 4 | C14: =AI3 -> 3 | V14: Tonn/mtl necessarie | W14: =AE10/AE11 -> 33 | AQ14: =(($A25^2)*2)*$W$12/AQ$1 -> 103 | AR14: =(($A25^2)*2)*$W$12/AR$1 -> 82 | AS14: =(($A25^2)*2)*$W$12/AS$1 -> 65 | AT14: =(($A25^2)*2)*$W$12/AT$1 -> 51 | AU14: =(($A25^2)*2)*$W$12/AU$1 -> 41
A15: 0.8 | B15: =AH4 -> 7 | C15: =AI4 -> 5 | D15: =AJ4 -> 4 | V15: K/Newton Matrice | W15: 981 | X15: Opzionale verifica Tonn matrice | AR15: =(($A26^2)*2)*$W$12/AR$1 -> 129 | AS15: =(($A26^2)*2)*$W$12/AS$1 -> 102 | AT15: =(($A26^2)*2)*$W$12/AT$1 -> 80 | AU15: =(($A26^2)*2)*$W$12/AU$1 -> 64 | AV15: =(($A26^2)*2)*$W$12/AV$1 -> 51
A16: 1 | B16: =AH5 -> 11 | C16: =AI5 -> 8 | D16: =AJ5 -> 6 | E16: =AK5 -> 5 | V16: Tonn/mtl | W16: =W15*0.1019716213 -> 100.03 | AS16: =(($A27^2)*2)*$W$12/AS$1 -> 147 | AT16: =(($A27^2)*2)*$W$12/AT$1 -> 116 | AU16: =(($A27^2)*2)*$W$12/AU$1 -> 93 | AV16: =(($A27^2)*2)*$W$12/AV$1 -> 74 | AW16: =(($A27^2)*2)*$W$12/AW$1 -> 58
A17: 1.2 | B17: =AH6 -> 15 | C17: =AI6 -> 12 | D17: =AJ6 -> 9 | E17: =AK6 -> 8 | F17: =AL6 -> 6 | AT17: =(($A28^2)*2)*$W$12/AT$1 -> 181 | AU17: =(($A28^2)*2)*$W$12/AU$1 -> 145 | AV17: =(($A28^2)*2)*$W$12/AV$1 -> 116 | AW17: =(($A28^2)*2)*$W$12/AW$1 -> 90 | AX17: =(($A28^2)*2)*$W$12/AX$1 -> 72
A18: 1.5 | D18: =AJ7 -> 14 | E18: =AK7 -> 12 | F18: =AL7 -> 9 | G18: =AM7 -> 7 | AU18: =(($A29^2)*2)*$W$12/AU$1 -> 257 | AV18: =(($A29^2)*2)*$W$12/AV$1 -> 206 | AW18: =(($A29^2)*2)*$W$12/AW$1 -> 161 | AX18: =(($A29^2)*2)*$W$12/AX$1 -> 129 | AY18: =(($A29^2)*2)*$W$12/AY$1 -> 103
A19: 2 | D19: =AJ8 -> 26 | E19: =AK8 -> 21 | F19: =AL8 -> 16 | G19: =AM8 -> 13 | H19: =AN8 -> 10 | AY19: =(($A30^2)*2)*$W$12/AY$1 -> 161
A20: 2.5 | E20: =AK9 -> 33 | F20: =AL9 -> 25 | G20: =AM9 -> 20 | H20: =AN9 -> 16 | I20: =AO9 -> 13 | J20: 11
A21: 3 | F21: =AL10 -> 36 | G21: =AM10 -> 29 | H21: =AN10 -> 23 | I21: 18 | J21: 17 | K21: =AQ10 -> 14
A22: 4 | G22: =AM11 -> 51 | H22: =AN11 -> 41 | I22: 32 | J22: 29 | K22: =AQ11 -> 26 | L22: =AR11 -> 21
A23: 5 | H23: =AN12 -> 64 | I23: 50 | J23: 46 | K23: =AQ12 -> 40 | L23: =AR12 -> 32 | M23: =AS12 -> 26
A24: 6 | I24: 72 | J24: 66 | K24: =AQ13 -> 58 | L24: =AR13 -> 46 | M24: =AS13 -> 37 | N24: =AT13 -> 29
A25: 8 | K25: =AQ14 -> 103 | L25: =AR14 -> 82 | M25: =AS14 -> 65 | N25: =AT14 -> 51 | O25: =AU14 -> 41
A26: 10 | L26: =AR15 -> 129 | M26: =AS15 -> 102 | N26: =AT15 -> 80 | O26: =AU15 -> 64 | P26: =AV15 -> 51
A27: 12 | M27: =AS16 -> 147 | N27: =AT16 -> 116 | O27: =AU16 -> 93 | P27: =AV16 -> 74 | Q27: =AW16 -> 58
A28: 15 | N28: =AT17 -> 181 | O28: =AU17 -> 145 | P28: =AV17 -> 116 | Q28: =AW17 -> 90 | R28: =AX17 -> 72
A29: 20 | O29: =AU18 -> 257 | P29: =AV18 -> 206 | Q29: =AW18 -> 161 | R29: =AX18 -> 129 | S29: =AY18 -> 103
A30: 25 | S30: =AY19 -> 161

Sheet Supporto

Sheet Pieghe aperte (hidden)
R8: =(TAN(R25)) -> -0.04366094291 | S8: =(TAN(R21)) -> -0.04366094291
R9: =C17+C24 -> 5.8 | S9: =C17+C20 -> 5.8
R10: =R24*D25 -> -28.77243056 | S10: =R20*D21 -> -28.77243056
R11: =R9+R10 -> -22.97243056 | S11: =S9+S10 -> -22.97243056
R12: =R8*(R9) -> -0.2532334689 | S12: =S8*(S9) -> -0.2532334689
F16: 1a Linea di piega (A) | H16: 2a Linea di piega | J16: 3a linea di piega (B) | L16: Misura taglio
A17: Spessore | C17: 2.5
A18: fatt K | C18: 0.50
A19: primo lato | C19: 90
A20: raggio int | C20: 3.3 | R20: =((C20+(C17*$C$18))*3.14)/180 -> 0.07937222222
A21: Angolo | C21: -725 | D21: =C21/2 -> -362.5 | F21: =C19-(TAN(R21)*(C17+C20))+(((R20*D21))) -> 61.48080291 | R21: =RADIANS(C21/2) -> -6.326818538
A23: secondo lato | C23: 150
A24: raggio int | C24: 3.3 | R24: =((C24+(C17*$C$18))*3.14)/180 -> 0.07937222222
A25: Angolo | C25: -725 | D25: =C25/2 -> -362.5 | H25: =C23-R12-S12 -> 150.5064669 | L25: =F21+J29 -> 132.9616058 | R25: =RADIANS(C25/2) -> -6.326818538
A27: terzo lato | C27: 100
A28: raggio int | C28: 3.3
A29: Angolo | C29: =$C$25 -> -725 | D29: =$D$25 -> -362.5 | J29: =C27-(TAN(R25)*(C17+C28))+(((R24*D25))) -> 71.48080291 | L29: =J29+H25+F21 -> 283.4680728
